[Event "Early-Titled-Tuesday-Blitz-May-14-2024"]
[Site "Chess.com"]
[Date "2024.05.14"]
[Round "4"]
[White "Dacean99"]
[Black "IvanMorovic"]
[Result "0-1"]
[WhiteElo "2598"]
[BlackElo "2569"]
[TimeControl "180+1"]
[EndTime "8:40:51 PDT"]
[Termination "IvanMorovic won by checkmate"]

1. e4 {[%clk 0:03:00.9]} 1... Nf6 {[%clk 0:02:54.6]} 2. e5 {[%clk 0:03:00.6]}
2... Nd5 {[%clk 0:02:54.7]} 3. Nc3 {[%clk 0:02:59.4]} 3... e6 {[%clk 0:02:47.1]}
4. Nxd5 {[%clk 0:02:56.2]} 4... exd5 {[%clk 0:02:46.9]} 5. c4 {[%clk 0:02:54.3]}
5... dxc4 {[%clk 0:02:37.7]} 6. Bxc4 {[%clk 0:02:53.3]} 6... d5 {[%clk
0:02:37.9]} 7. exd6 {[%clk 0:02:52.6]} 7... Bxd6 {[%clk 0:02:38.8]} 8. Nf3
{[%clk 0:02:51.7]} 8... O-O {[%clk 0:02:38]} 9. O-O {[%clk 0:02:51.3]} 9... Nc6
{[%clk 0:02:35.6]} 10. a3 {[%clk 0:02:49.3]} 10... Bg4 {[%clk 0:02:33.8]} 11. h3
{[%clk 0:02:48.6]} 11... Bh5 {[%clk 0:02:28.4]} 12. d3 {[%clk 0:02:45.2]} 12...
Re8 {[%clk 0:02:03.5]} 13. Qb3 {[%clk 0:02:36.9]} 13... Qd7 {[%clk 0:01:27.7]}
14. Ng5 {[%clk 0:02:33.2]} 14... Na5 {[%clk 0:01:22.1]} 15. Qb5 {[%clk
0:02:30.8]} 15... Qxb5 {[%clk 0:01:19.8]} 16. Bxb5 {[%clk 0:02:30.5]} 16... Re5
{[%clk 0:01:15.6]} 17. Ba4 {[%clk 0:02:27.9]} 17... Be2 {[%clk 0:01:15.3]} 18.
Re1 {[%clk 0:02:20.2]} 18... Bxd3 {[%clk 0:01:12.6]} 19. Rd1 {[%clk 0:02:20.4]}
19... Bg6 {[%clk 0:01:06.8]} 20. b4 {[%clk 0:02:19.1]} 20... Nc6 {[%clk
0:01:01.2]} 21. Bf4 {[%clk 0:02:13.1]} 21... Re2 {[%clk 0:00:45.7]} 22. Bxd6
{[%clk 0:02:11.5]} 22... cxd6 {[%clk 0:00:46.6]} 23. Bxc6 {[%clk 0:02:09.8]}
23... bxc6 {[%clk 0:00:45.9]} 24. Rxd6 {[%clk 0:02:10.4]} 24... h6 {[%clk
0:00:42.4]} 25. Nf3 {[%clk 0:02:09.8]} 25... Be4 {[%clk 0:00:40.4]} 26. Nd4
{[%clk 0:02:00.5]} 26... Rd2 {[%clk 0:00:40.1]} 27. Nf5 {[%clk 0:02:00]} 27...
Rxd6 {[%clk 0:00:38.8]} 28. Nxd6 {[%clk 0:02:00.9]} 28... Bd5 {[%clk 0:00:39.1]}
29. Rc1 {[%clk 0:01:59.1]} 29... Kf8 {[%clk 0:00:39]} 30. Nb7 {[%clk 0:01:56.2]}
30... Re8 {[%clk 0:00:37.9]} 31. Na5 {[%clk 0:01:55.4]} 31... Re6 {[%clk
0:00:32.8]} 32. Rc5 {[%clk 0:01:54]} 32... a6 {[%clk 0:00:31.7]} 33. a4 {[%clk
0:01:51.7]} 33... Rg6 {[%clk 0:00:31.8]} 34. g3 {[%clk 0:01:50.9]} 34... Re6
{[%clk 0:00:31.8]} 35. Kf1 {[%clk 0:01:48.1]} 35... Re5 {[%clk 0:00:27.7]} 36.
Nxc6 {[%clk 0:01:44.2]} 36... Rf5 {[%clk 0:00:22.2]} 37. g4 {[%clk 0:01:39.3]}
37... Rf6 {[%clk 0:00:22.2]} 38. b5 {[%clk 0:01:34.1]} 38... axb5 {[%clk
0:00:20.6]} 39. axb5 {[%clk 0:01:35]} 39... Bf3 {[%clk 0:00:20.1]} 40. Ne5
{[%clk 0:01:32.3]} 40... Ke7 {[%clk 0:00:15.1]} 41. Rc7+ {[%clk 0:01:27.6]}
41... Kd6 {[%clk 0:00:13.9]} 42. Nxf3 {[%clk 0:01:06.6]} 42... Kxc7 {[%clk
0:00:12.8]} 43. Ne5 {[%clk 0:01:05.5]} 43... Rf4 {[%clk 0:00:12]} 44. Ke2 {[%clk
0:01:03.3]} 44... Re4+ {[%clk 0:00:10.9]} 45. Kd3 {[%clk 0:01:02.3]} 45... Rxe5
{[%clk 0:00:11.8]} 46. Kc4 {[%clk 0:01:03.1]} 46... Kb6 {[%clk 0:00:11.3]} 47.
f4 {[%clk 0:01:03.7]} 47... Rxb5 {[%clk 0:00:11.1]} 48. h4 {[%clk 0:01:04.1]}
48... Kc6 {[%clk 0:00:11.3]} 49. g5 {[%clk 0:01:04]} 49... hxg5 {[%clk
0:00:10.2]} 50. hxg5 {[%clk 0:01:04.9]} 50... g6 {[%clk 0:00:10.6]} 51. Kd4
{[%clk 0:01:03.6]} 51... Rf5 {[%clk 0:00:11.5]} 52. Ke4 {[%clk 0:01:04.4]} 52...
Kc5 {[%clk 0:00:11.5]} 53. Ke3 {[%clk 0:01:04.4]} 53... Kd5 {[%clk 0:00:12.2]}
54. Kf3 {[%clk 0:01:04.9]} 54... Kd4 {[%clk 0:00:12.4]} 55. Kg4 {[%clk
0:01:05.8]} 55... Ke4 {[%clk 0:00:12.8]} 56. Kh4 {[%clk 0:01:05.9]} 56... Rxf4+
{[%clk 0:00:13.7]} 57. Kg3 {[%clk 0:01:06.8]} 57... Ke3 {[%clk 0:00:13.7]} 58.
Kh3 {[%clk 0:01:07.7]} 58... Rf3+ {[%clk 0:00:14.2]} 59. Kg4 {[%clk 0:01:07.8]}
59... Kf2 {[%clk 0:00:14.4]} 60. Kh4 {[%clk 0:01:08.2]} 60... Rf4+ {[%clk
0:00:14.6]} 61. Kh3 {[%clk 0:01:08.5]} 61... Kf3 {[%clk 0:00:15.4]} 62. Kh2
{[%clk 0:01:08.5]} 62... Rh4+ {[%clk 0:00:16.3]} 63. Kg1 {[%clk 0:01:08.7]}
63... Rh5 {[%clk 0:00:17.2]} 64. Kf1 {[%clk 0:01:09.2]} 64... Rh1# {[%clk
0:00:17.3]} 0-1

[Event "Early-Titled-Tuesday-Blitz-May-14-2024"]
[Site "Chess.com"]
[Date "2024.05.14"]
[Round "4"]
[White "GMG"]
[Black "ChainedDowntohell"]
[Result "1-0"]
[WhiteElo "2776"]
[BlackElo "2589"]
[TimeControl "180+1"]
[EndTime "8:40:53 PDT"]
[Termination "GMG won by resignation"]

1. Nf3 {[%clk 0:03:00.5]} 1... c5 {[%clk 0:02:58]} 2. c4 {[%clk 0:03:00.5]} 2...
Nc6 {[%clk 0:02:56.8]} 3. Nc3 {[%clk 0:02:57.4]} 3... g6 {[%clk 0:02:56.3]} 4.
e3 {[%clk 0:02:57.9]} 4... Nf6 {[%clk 0:02:54.2]} 5. d4 {[%clk 0:02:57]} 5...
cxd4 {[%clk 0:02:54.6]} 6. exd4 {[%clk 0:02:57.9]} 6... d5 {[%clk 0:02:55.2]} 7.
cxd5 {[%clk 0:02:58.7]} 7... Nxd5 {[%clk 0:02:55.1]} 8. Bc4 {[%clk 0:02:59.3]}
8... Nxc3 {[%clk 0:02:55.3]} 9. bxc3 {[%clk 0:02:52.1]} 9... Bg7 {[%clk
0:02:54.7]} 10. O-O {[%clk 0:02:51.3]} 10... O-O {[%clk 0:02:54.4]} 11. Re1
{[%clk 0:02:50.1]} 11... Qc7 {[%clk 0:02:40]} 12. Ba3 {[%clk 0:02:46.9]} 12...
Rd8 {[%clk 0:02:29.4]} 13. Bxf7+ {[%clk 0:02:17.4]} 13... Kxf7 {[%clk
0:02:28.7]} 14. Qb3+ {[%clk 0:01:57]} 14... Kf6 {[%clk 0:01:04.8]} 15. Ne5
{[%clk 0:00:47.6]} 15... Be6 {[%clk 0:01:02.4]} 16. Qd1 {[%clk 0:00:33.2]} 16...
Nxe5 {[%clk 0:01:01.9]} 17. Rxe5 {[%clk 0:00:33.3]} 17... Kf7 {[%clk 0:00:11.5]}
18. Qf3+ {[%clk 0:00:29.6]} 18... Bf5 {[%clk 0:00:09.2]} 19. Rxe7+ {[%clk
0:00:23.7]} 19... Qxe7 {[%clk 0:00:10.1]} 20. Bxe7 {[%clk 0:00:23.9]} 20... Kxe7
{[%clk 0:00:10]} 21. Re1+ {[%clk 0:00:24.5]} 21... Kd6 {[%clk 0:00:03.6]} 22.
Qxb7 {[%clk 0:00:21.6]} 22... Re8 {[%clk 0:00:02.7]} 23. Re3 {[%clk 0:00:06.3]}
23... Bh6 {[%clk 0:00:02.8]} 24. Qa6+ {[%clk 0:00:05.6]} 24... Kd7 {[%clk
0:00:03.1]} 25. Qb5+ {[%clk 0:00:05.1]} 25... Kd6 {[%clk 0:00:03.5]} 26. Rxe8
{[%clk 0:00:04.8]} 26... Rxe8 {[%clk 0:00:02]} 27. Qxe8 {[%clk 0:00:05.7]} 27...
Be6 {[%clk 0:00:02.1]} 28. Qd8+ {[%clk 0:00:05.6]} 28... Kc6 {[%clk 0:00:01.7]}
29. c4 {[%clk 0:00:06]} 29... Bxc4 {[%clk 0:00:01.7]} 30. Qc8+ {[%clk
0:00:06.4]} 1-0

[Event "Early-Titled-Tuesday-Blitz-May-14-2024"]
[Site "Chess.com"]
[Date "2024.05.14"]
[Round "4"]
[White "Iball95"]
[Black "Let_it_be_1"]
[Result "1-0"]
[WhiteElo "2924"]
[BlackElo "2631"]
[TimeControl "180+1"]
[EndTime "8:40:54 PDT"]
[Termination "Iball95 won by resignation"]

1. e4 {[%clk 0:03:00.9]} 1... e6 {[%clk 0:03:00.1]} 2. d4 {[%clk 0:03:00.5]}
2... d5 {[%clk 0:03:00.7]} 3. Nc3 {[%clk 0:03:01.1]} 3... Nf6 {[%clk 0:03:00.4]}
4. Bd3 {[%clk 0:03:01.2]} 4... c5 {[%clk 0:02:59.2]} 5. Nf3 {[%clk 0:03:01.4]}
5... Nc6 {[%clk 0:02:59]} 6. exd5 {[%clk 0:03:01.1]} 6... Nxd5 {[%clk
0:02:56.9]} 7. Nxd5 {[%clk 0:03:00.9]} 7... Qxd5 {[%clk 0:02:56.7]} 8. dxc5
{[%clk 0:03:01.3]} 8... Bxc5 {[%clk 0:02:55]} 9. O-O {[%clk 0:03:00.1]} 9... e5
{[%clk 0:02:37.2]} 10. Nxe5 {[%clk 0:02:47.7]} 10... Be6 {[%clk 0:02:11.1]} 11.
Nxc6 {[%clk 0:02:41.6]} 11... Qxc6 {[%clk 0:02:09.3]} 12. Qh5 {[%clk 0:02:25.6]}
12... g6 {[%clk 0:02:02.2]} 13. Qh4 {[%clk 0:01:59]} 13... O-O {[%clk
0:01:59.1]} 14. Bh6 {[%clk 0:01:58.8]} 14... Rfd8 {[%clk 0:01:55.8]} 15. Rae1
{[%clk 0:01:47.1]} 15... Bd4 {[%clk 0:01:50.9]} 16. b3 {[%clk 0:01:36.7]} 16...
Bc3 {[%clk 0:01:41.8]} 17. Re3 {[%clk 0:01:30]} 17... Rd4 {[%clk 0:01:36.4]} 18.
Be4 {[%clk 0:01:12.3]} 18... Bf5 {[%clk 0:01:12.9]} 19. Bxc6 {[%clk 0:01:01.5]}
19... Rxh4 {[%clk 0:01:11.5]} 20. Bxb7 {[%clk 0:00:55.4]} 20... Rb8 {[%clk
0:01:09.2]} 21. Rxc3 {[%clk 0:00:45.4]} 21... Rxh6 {[%clk 0:01:06.8]} 22. Bf3
{[%clk 0:00:40.6]} 22... g5 {[%clk 0:01:05.7]} 23. h3 {[%clk 0:00:39.9]} 23...
Rd6 {[%clk 0:00:58.3]} 24. Rc5 {[%clk 0:00:35]} 24... Bg6 {[%clk 0:00:58]} 25.
Rxg5 {[%clk 0:00:32.2]} 25... Rd2 {[%clk 0:00:58.2]} 26. Be4 {[%clk 0:00:30]}
26... Re8 {[%clk 0:00:54.4]} 27. Bxg6 {[%clk 0:00:29.7]} 27... hxg6 {[%clk
0:00:54.4]} 28. Rc5 {[%clk 0:00:30.2]} 28... Ree2 {[%clk 0:00:53.9]} 29. Rc7
{[%clk 0:00:29.9]} 29... a5 {[%clk 0:00:49.9]} 30. Rc5 {[%clk 0:00:29.8]} 30...
a4 {[%clk 0:00:48.8]} 31. bxa4 {[%clk 0:00:28.7]} 31... Rxc2 {[%clk 0:00:48.6]}
32. Rxc2 {[%clk 0:00:29.6]} 32... Rxc2 {[%clk 0:00:48.5]} 33. Rb1 {[%clk
0:00:28.8]} 33... Rxa2 {[%clk 0:00:48.3]} 34. Rb4 {[%clk 0:00:29.4]} 34... Kg7
{[%clk 0:00:48.2]} 35. h4 {[%clk 0:00:29.6]} 35... f5 {[%clk 0:00:45.4]} 36. g3
{[%clk 0:00:29.1]} 36... Kh6 {[%clk 0:00:45.4]} 37. Rf4 {[%clk 0:00:29]} 37...
Kh5 {[%clk 0:00:44.6]} 38. Kf1 {[%clk 0:00:29.1]} 38... Rb2 {[%clk 0:00:41.2]}
39. Ke1 {[%clk 0:00:28.9]} 39... Ra2 {[%clk 0:00:41.4]} 40. Kd1 {[%clk
0:00:28.7]} 40... Rb2 {[%clk 0:00:32.6]} 41. Kc1 {[%clk 0:00:28.7]} 41... Re2
{[%clk 0:00:32.6]} 42. Kb1 {[%clk 0:00:28.9]} 42... Rd2 {[%clk 0:00:26.7]} 43.
a5 {[%clk 0:00:28.3]} 43... Rd6 {[%clk 0:00:22.4]} 44. Ra4 {[%clk 0:00:27.2]}
44... Ra6 {[%clk 0:00:20.6]} 45. Kc2 {[%clk 0:00:27.3]} 45... g5 {[%clk
0:00:21.5]} 46. hxg5 {[%clk 0:00:27.1]} 46... Kxg5 {[%clk 0:00:21.7]} 47. Kb3
{[%clk 0:00:25.6]} 1-0

[Event "Early-Titled-Tuesday-Blitz-May-14-2024"]
[Site "Chess.com"]
[Date "2024.05.14"]
[Round "4"]
[White "Flaccidmoves"]
[Black "The_Machine04"]
[Result "0-1"]
[WhiteElo "2427"]
[BlackElo "2671"]
[TimeControl "180+1"]
[EndTime "8:40:56 PDT"]
[Termination "The_Machine04 won by resignation"]

1. Nf3 {[%clk 0:03:00.9]} 1... d6 {[%clk 0:02:59.7]} 2. d4 {[%clk 0:02:59]} 2...
Nf6 {[%clk 0:02:59.7]} 3. c4 {[%clk 0:02:58.6]} 3... g6 {[%clk 0:02:59.9]} 4.
Nc3 {[%clk 0:02:58.2]} 4... Bf5 {[%clk 0:03:00.6]} 5. g3 {[%clk 0:02:51.9]} 5...
Ne4 {[%clk 0:02:56.8]} 6. Qb3 {[%clk 0:02:49.2]} 6... Nxc3 {[%clk 0:02:56]} 7.
Qxc3 {[%clk 0:02:50.1]} 7... Bg7 {[%clk 0:02:55.9]} 8. Bg2 {[%clk 0:02:48.7]}
8... Be4 {[%clk 0:02:56.4]} 9. O-O {[%clk 0:02:42.3]} 9... O-O {[%clk
0:02:56.2]} 10. Qb3 {[%clk 0:02:36.8]} 10... c5 {[%clk 0:02:54.3]} 11. d5 {[%clk
0:02:35.2]} 11... Nd7 {[%clk 0:02:47.2]} 12. Qxb7 {[%clk 0:02:19.1]} 12... Rb8
{[%clk 0:02:21.7]} 13. Qxa7 {[%clk 0:02:11.8]} 13... Bxb2 {[%clk 0:01:36]} 14.
Bxb2 {[%clk 0:02:04.9]} 14... Rxb2 {[%clk 0:01:36.9]} 15. Bh3 {[%clk 0:01:59.4]}
15... Bxf3 {[%clk 0:01:27.1]} 16. exf3 {[%clk 0:01:59.1]} 16... Ne5 {[%clk
0:01:26.6]} 17. f4 {[%clk 0:01:47.5]} 17... Nxc4 {[%clk 0:01:21.1]} 18. Rfe1
{[%clk 0:01:43.4]} 18... Re8 {[%clk 0:01:12.2]} 19. Bd7 {[%clk 0:01:37.4]} 19...
Qb8 {[%clk 0:00:52.7]} 20. Qxb8 {[%clk 0:01:34.2]} 20... Rexb8 {[%clk
0:00:53.6]} 21. Rxe7 {[%clk 0:01:28.3]} 21... Rd2 {[%clk 0:00:30.1]} 22. a4
{[%clk 0:00:45.9]} 22... Rbb2 {[%clk 0:00:24.7]} 23. Bb5 {[%clk 0:00:40.4]}
23... Nb6 {[%clk 0:00:08.7]} 24. Bf1 {[%clk 0:00:34.4]} 24... Nxd5 {[%clk
0:00:06.6]} 25. Re8+ {[%clk 0:00:34.2]} 25... Kg7 {[%clk 0:00:06.6]} 26. a5
{[%clk 0:00:34.9]} 26... Ra2 {[%clk 0:00:06.4]} 27. Rxa2 {[%clk 0:00:30.6]}
27... Rxa2 {[%clk 0:00:07.3]} 28. a6 {[%clk 0:00:31]} 28... Nb4 {[%clk
0:00:07.1]} 29. Rd8 {[%clk 0:00:24]} 29... d5 {[%clk 0:00:06.7]} 30. Rd7 {[%clk
0:00:23.4]} 30... c4 {[%clk 0:00:05.5]} 31. a7 {[%clk 0:00:20.9]} 31... c3
{[%clk 0:00:05.9]} 32. Rc7 {[%clk 0:00:20.3]} 32... c2 {[%clk 0:00:06.2]} 33.
Kg2 {[%clk 0:00:15.9]} 33... Rxa7 {[%clk 0:00:05.1]} 34. Rc5 {[%clk 0:00:13]}
34... Ra1 {[%clk 0:00:04.9]} 35. Be2 {[%clk 0:00:09.8]} 35... c1=Q {[%clk
0:00:05.2]} 0-1

[Event "Early-Titled-Tuesday-Blitz-May-14-2024"]
[Site "Chess.com"]
[Date "2024.05.14"]
[Round "4"]
[White "chessdjw"]
[Black "ReinisUz"]
[Result "0-1"]
[WhiteElo "2752"]
[BlackElo "2431"]
[TimeControl "180+1"]
[EndTime "8:40:56 PDT"]
[Termination "ReinisUz won by checkmate"]

1. e4 {[%clk 0:03:00.9]} 1... e5 {[%clk 0:02:59.9]} 2. Nf3 {[%clk 0:03:00.8]}
2... Nc6 {[%clk 0:03:00.5]} 3. Bc4 {[%clk 0:03:01.1]} 3... Bc5 {[%clk
0:02:59.8]} 4. c3 {[%clk 0:03:00.5]} 4... Nf6 {[%clk 0:02:59.2]} 5. d3 {[%clk
0:03:00.7]} 5... O-O {[%clk 0:02:58.1]} 6. O-O {[%clk 0:02:57.7]} 6... d6 {[%clk
0:02:54.6]} 7. Nbd2 {[%clk 0:02:54.2]} 7... a6 {[%clk 0:02:54.2]} 8. a4 {[%clk
0:02:53.8]} 8... Re8 {[%clk 0:02:51.1]} 9. h3 {[%clk 0:02:52.7]} 9... Be6 {[%clk
0:02:50.8]} 10. Bxe6 {[%clk 0:02:51.8]} 10... Rxe6 {[%clk 0:02:51]} 11. b4
{[%clk 0:02:52.3]} 11... Ba7 {[%clk 0:02:50.3]} 12. Qc2 {[%clk 0:02:52.7]} 12...
h6 {[%clk 0:02:49.9]} 13. Rd1 {[%clk 0:02:51.9]} 13... Nh5 {[%clk 0:02:49]} 14.
Nf1 {[%clk 0:02:43.8]} 14... Rg6 {[%clk 0:02:48.9]} 15. Rb1 {[%clk 0:02:25.5]}
15... Qf6 {[%clk 0:02:47.2]} 16. Qe2 {[%clk 0:02:13.9]} 16... Nd8 {[%clk
0:02:12.1]} 17. Nxe5 {[%clk 0:00:53.7]} 17... dxe5 {[%clk 0:02:05.7]} 18. d4
{[%clk 0:00:47.6]} 18... Nf4 {[%clk 0:02:02.9]} 19. Bxf4 {[%clk 0:00:44.5]}
19... Qxf4 {[%clk 0:02:03.8]} 20. g3 {[%clk 0:00:32.1]} 20... Qg5 {[%clk
0:01:59.3]} 21. Ne3 {[%clk 0:00:29.3]} 21... Ne6 {[%clk 0:01:56.3]} 22. Nf5
{[%clk 0:00:25.7]} 22... exd4 {[%clk 0:01:45.7]} 23. cxd4 {[%clk 0:00:25.4]}
23... Rd8 {[%clk 0:01:38.2]} 24. h4 {[%clk 0:00:25.1]} 24... Qf6 {[%clk
0:01:35.4]} 25. h5 {[%clk 0:00:20.3]} 25... Rg5 {[%clk 0:01:28.8]} 26. d5 {[%clk
0:00:13.6]} 26... Nd4 {[%clk 0:01:15.9]} 27. Nxd4 {[%clk 0:00:10.3]} 27... Bxd4
{[%clk 0:01:16.8]} 28. Kg2 {[%clk 0:00:10.1]} 28... Re8 {[%clk 0:01:01.1]} 29.
Rbc1 {[%clk 0:00:09.5]} 29... Qe5 {[%clk 0:00:49.5]} 30. Rc4 {[%clk 0:00:06.2]}
30... Ba7 {[%clk 0:00:40.9]} 31. Rdc1 {[%clk 0:00:06]} 31... f5 {[%clk
0:00:30.8]} 32. Rxc7 {[%clk 0:00:02]} 32... Qxe4+ {[%clk 0:00:30.1]} 33. Qxe4
{[%clk 0:00:02.3]} 33... Rxe4 {[%clk 0:00:31]} 34. Rxb7 {[%clk 0:00:02.7]} 34...
Bd4 {[%clk 0:00:30.7]} 35. Rc8+ {[%clk 0:00:02.5]} 35... Kh7 {[%clk 0:00:30.7]}
36. Rbb8 {[%clk 0:00:02.9]} 36... Rxh5 {[%clk 0:00:27.6]} 37. Rh8+ {[%clk
0:00:03.3]} 37... Kg6 {[%clk 0:00:28.1]} 38. Ra8 {[%clk 0:00:03.4]} 38... Re2
{[%clk 0:00:27.3]} 39. Rxa6+ {[%clk 0:00:03.6]} 39... Kf7 {[%clk 0:00:25.3]} 40.
g4 {[%clk 0:00:01.1]} 40... Rxf2+ {[%clk 0:00:23.4]} 41. Kg3 {[%clk 0:00:01.7]}
41... f4# {[%clk 0:00:23.7]} 0-1

[Event "Early-Titled-Tuesday-Blitz-May-14-2024"]
[Site "Chess.com"]
[Date "2024.05.14"]
[Round "4"]
[White "Matibar"]
[Black "JiaHaoxiang"]
[Result "0-1"]
[WhiteElo "2779"]
[BlackElo "2611"]
[TimeControl "180+1"]
[EndTime "8:40:57 PDT"]
[Termination "JiaHaoxiang won by resignation"]

1. e4 {[%clk 0:03:00.9]} 1... c5 {[%clk 0:02:59.5]} 2. Nf3 {[%clk 0:02:57.5]}
2... d6 {[%clk 0:02:55.9]} 3. c3 {[%clk 0:02:56.3]} 3... Nf6 {[%clk 0:02:54.6]}
4. Bd3 {[%clk 0:02:53.9]} 4... Bg4 {[%clk 0:02:46.5]} 5. h3 {[%clk 0:02:33.9]}
5... Bxf3 {[%clk 0:02:45.8]} 6. Qxf3 {[%clk 0:02:34.1]} 6... Nc6 {[%clk
0:02:46]} 7. Bb5 {[%clk 0:02:32.9]} 7... Qb6 {[%clk 0:02:40.8]} 8. Na3 {[%clk
0:02:29.4]} 8... a6 {[%clk 0:02:40]} 9. Ba4 {[%clk 0:02:29]} 9... Qa5 {[%clk
0:02:36.5]} 10. Bxc6+ {[%clk 0:02:26.2]} 10... bxc6 {[%clk 0:02:36.3]} 11. e5
{[%clk 0:02:25.4]} 11... Nd5 {[%clk 0:02:33.8]} 12. exd6 {[%clk 0:01:56]} 12...
exd6 {[%clk 0:02:34.7]} 13. O-O {[%clk 0:01:55.8]} 13... Be7 {[%clk 0:02:31.2]}
14. Re1 {[%clk 0:01:52]} 14... Ra7 {[%clk 0:02:25]} 15. Nc4 {[%clk 0:01:13.4]}
15... Qd8 {[%clk 0:02:24.4]} 16. d3 {[%clk 0:01:12.2]} 16... O-O {[%clk
0:02:23.1]} 17. a4 {[%clk 0:01:13.1]} 17... Bf6 {[%clk 0:02:04.5]} 18. a5 {[%clk
0:01:12.8]} 18... Re8 {[%clk 0:02:00.1]} 19. Rxe8+ {[%clk 0:01:09.4]} 19... Qxe8
{[%clk 0:02:00.3]} 20. Bd2 {[%clk 0:01:09.6]} 20... Qd8 {[%clk 0:01:53.5]} 21.
Re1 {[%clk 0:01:09.6]} 21... Re7 {[%clk 0:01:52.6]} 22. Re4 {[%clk 0:01:07.8]}
22... h6 {[%clk 0:01:49.7]} 23. Qg3 {[%clk 0:01:02.1]} 23... Rd7 {[%clk
0:01:02.2]} 24. Bxh6 {[%clk 0:01:00.4]} 24... Ne7 {[%clk 0:00:56.2]} 25. Nb6
{[%clk 0:00:35.3]} 25... Nf5 {[%clk 0:00:54.7]} 26. Qf3 {[%clk 0:00:26.5]} 26...
Nxh6 {[%clk 0:00:53]} 27. Nxd7 {[%clk 0:00:26.1]} 27... Qxd7 {[%clk 0:00:53.3]}
28. Qe2 {[%clk 0:00:21.7]} 28... g6 {[%clk 0:00:48.3]} 29. Re8+ {[%clk
0:00:20.5]} 29... Kg7 {[%clk 0:00:47.8]} 30. Rb8 {[%clk 0:00:20.7]} 30... Be5
{[%clk 0:00:44]} 31. Rb6 {[%clk 0:00:18]} 31... Qc8 {[%clk 0:00:41.8]} 32. d4
{[%clk 0:00:16.4]} 32... cxd4 {[%clk 0:00:40.9]} 33. cxd4 {[%clk 0:00:15.1]}
33... Bxd4 {[%clk 0:00:41.3]} 34. Rxa6 {[%clk 0:00:15.2]} 34... Qb7 {[%clk
0:00:38.4]} 35. b4 {[%clk 0:00:14.1]} 35... Nf5 {[%clk 0:00:37.2]} 36. g3 {[%clk
0:00:13.5]} 36... Nxg3 {[%clk 0:00:35.5]} 37. Qc4 {[%clk 0:00:13.2]} 37... Nf5
{[%clk 0:00:35.2]} 38. Rxc6 {[%clk 0:00:12.7]} 38... d5 {[%clk 0:00:33.1]} 39.
Qxd5 {[%clk 0:00:10.8]} 39... Qxb4 {[%clk 0:00:33.2]} 40. Rc7 {[%clk 0:00:07.3]}
40... Qe1+ {[%clk 0:00:33.1]} 0-1

[Event "Early-Titled-Tuesday-Blitz-May-14-2024"]
[Site "Chess.com"]
[Date "2024.05.14"]
[Round "4"]
[White "Timerkhanov"]
[Black "LoaySameer"]
[Result "1-0"]
[WhiteElo "2710"]
[BlackElo "2542"]
[TimeControl "180+1"]
[EndTime "8:40:58 PDT"]
[Termination "Timerkhanov won by resignation"]

1. d4 {[%clk 0:03:00.9]} 1... Nf6 {[%clk 0:03:00]} 2. Bg5 {[%clk 0:03:00.4]}
2... g6 {[%clk 0:02:59]} 3. Bxf6 {[%clk 0:03:00]} 3... exf6 {[%clk 0:02:59.9]}
4. e3 {[%clk 0:03:00.2]} 4... Bg7 {[%clk 0:03:00.2]} 5. g3 {[%clk 0:03:00.8]}
5... O-O {[%clk 0:03:00.2]} 6. Bg2 {[%clk 0:03:01.5]} 6... d5 {[%clk 0:03:00.7]}
7. Ne2 {[%clk 0:03:01.9]} 7... c6 {[%clk 0:03:01.4]} 8. O-O {[%clk 0:03:02.4]}
8... f5 {[%clk 0:03:01.9]} 9. Nd2 {[%clk 0:03:02.9]} 9... Nd7 {[%clk 0:03:02.3]}
10. c4 {[%clk 0:03:03.3]} 10... Nf6 {[%clk 0:03:02.6]} 11. Nf4 {[%clk
0:03:00.7]} 11... Be6 {[%clk 0:02:57.7]} 12. cxd5 {[%clk 0:02:58.4]} 12... Bxd5
{[%clk 0:02:48.7]} 13. Nxd5 {[%clk 0:02:58.1]} 13... Nxd5 {[%clk 0:02:46.3]} 14.
Qb3 {[%clk 0:02:58.2]} 14... Qd7 {[%clk 0:02:42.1]} 15. Bxd5 {[%clk 0:02:57]}
15... cxd5 {[%clk 0:02:39.6]} 16. Rac1 {[%clk 0:02:57]} 16... f4 {[%clk
0:02:35.9]} 17. exf4 {[%clk 0:02:48.7]} 17... Bxd4 {[%clk 0:02:31.7]} 18. Nf3
{[%clk 0:02:49]} 18... Bg7 {[%clk 0:02:27.3]} 19. Rfd1 {[%clk 0:02:47.5]} 19...
Rfd8 {[%clk 0:02:20.7]} 20. Rd3 {[%clk 0:02:38.2]} 20... a5 {[%clk 0:01:03.4]}
21. a4 {[%clk 0:02:09.2]} 21... d4 {[%clk 0:00:28.6]} 22. Rcd1 {[%clk
0:01:55.1]} 22... Ra6 {[%clk 0:00:28.7]} 23. Ng5 {[%clk 0:01:23.3]} 23... h6
{[%clk 0:00:16.5]} 24. Rxd4 {[%clk 0:01:18.2]} 24... Bxd4 {[%clk 0:00:12.9]} 25.
Rxd4 {[%clk 0:01:17.7]} 25... hxg5 {[%clk 0:00:11.9]} 26. Rxd7 {[%clk
0:01:15.3]} 26... Rxd7 {[%clk 0:00:12.8]} 27. fxg5 {[%clk 0:01:14.1]} 27... Re6
{[%clk 0:00:12.6]} 28. Qb5 {[%clk 0:01:10.9]} 28... Rd2 {[%clk 0:00:09.2]} 29.
Qxb7 {[%clk 0:00:58.9]} 29... Ree2 {[%clk 0:00:03.9]} 30. Qb8+ {[%clk
0:00:58.9]} 30... Kg7 {[%clk 0:00:03.7]} 31. Qf4 {[%clk 0:00:58.1]} 31... Rxb2
{[%clk 0:00:03.7]} 32. h4 {[%clk 0:00:55.7]} 32... Rec2 {[%clk 0:00:01.7]} 33.
Qf6+ {[%clk 0:00:54]} 33... Kg8 {[%clk 0:00:01.9]} 34. Qd8+ {[%clk 0:00:47.5]}
34... Kg7 {[%clk 0:00:02.1]} 35. Qd4+ {[%clk 0:00:47.4]} 35... Kg8 {[%clk
0:00:01.9]} 36. Qa7 {[%clk 0:00:43.8]} 36... Ra2 {[%clk 0:00:00.9]} 37. Qa8+
{[%clk 0:00:37.2]} 37... Kg7 {[%clk 0:00:01.5]} 38. Qf3 {[%clk 0:00:26.6]} 38...
Rxa4 {[%clk 0:00:01.7]} 39. Qf6+ {[%clk 0:00:27.1]} 39... Kg8 {[%clk 0:00:01.7]}
40. h5 {[%clk 0:00:28]} 40... gxh5 {[%clk 0:00:01.9]} 41. g6 {[%clk 0:00:28.9]}
41... fxg6 {[%clk 0:00:02.3]} 42. Qxg6+ {[%clk 0:00:29.8]} 42... Kf8 {[%clk
0:00:02.8]} 43. Qxc2 {[%clk 0:00:30.5]} 1-0